bitfinex-derivatives/quotes_SOLF0:USTF0_20250623
["timestamp","ask_amount","ask_price","bid_price","bid_amount"]
[1750674389235,7.4788,133.68,133.65,7.4801]
[1750674391643,37.12,133.7,133.66,5.28721534]
[1750674392040,40.09169447,133.71,133.66,5.28721534]
[1750674392246,45.65253028,133.72,133.69,7.4779]
[1750674392444,42.68070796,133.72,133.69,7.4779]
[1750674392643,42.68154392,133.72,133.69,7.4779]
[1750674393043,45.65370906,133.72,133.69,7.4779]
[1750674393449,6.88344181,133.77,133.7,5.28721534]
[1750674393642,8.53527058,133.76,133.73,5.28721534]
[1750674393841,7.4739,133.77,133.74,7.4749]
[1750674394045,8.53585003,133.76,133.74,7.4749]
[1750674394341,7.4741,133.76,133.74,7.4749]
[1750674394544,8.53883004,133.77,133.74,7.4749]
[1750674394741,8.53420579,133.77,133.74,7.4749]
[1750674395749,7.4741,133.76,133.74,7.4749]
[1750674396254,7.4741,133.76,133.73,12.76251534]
[1750674396655,16.01030787,133.77,133.73,5.28721534]
[1750674396850,16.01030787,133.77,133.74,7.4751]
[1750674397856,16.014621,133.77,133.74,7.4751]
[1750674398655,7.4741,133.76,133.74,7.4751]
[1750674398958,8.540821,133.77,133.74,7.4751]
[1750674399153,690.6735,133.78,133.75,12.76171534]
[1750674399354,683.2,133.78,133.75,12.76171534]
[1750674399751,37.12,133.78,133.75,12.76171534]
[1750674400152,45.67504046,133.78,133.75,12.76171534]
[1750674400653,7.4738,133.77,133.75,12.76171534]
[1750674401758,44.5932,133.78,133.76,7.4741]
[1750674402057,53.14407386,133.78,133.76,7.4741]
[1750674402270,44.5932,133.78,133.76,7.4741]
[1750674406970,37.12,133.78,133.75,5.28721534]
[1750674407155,37.12,133.78,133.72,5.28721534]
[1750674407559,37.12,133.78,133.74,5.28721534]
[1750674408361,7.4739,133.77,133.74,12.76211534]
[1750674410466,7.4741,133.76,133.74,12.76211534]
[1750674411963,7.4746,133.75,133.74,5.28721534]
[1750674412164,7.4746,133.75,133.73,12.76271534]
[1750674413277,7.4744,133.76,133.73,12.76271534]
[1750674413660,7.4744,133.76,133.74,7.4751]
[1750674414371,7.4746,133.75,133.74,5.28721534]
[1750674415764,7.4746,133.75,133.72,7.476]
[1750674415964,7.4746,133.75,133.73,5.28721534]
[1750674420374,7.4752,133.74,133.73,5.28721534]
[1750674420977,7.475,133.75,133.73,5.28721534]
[1750674421474,45.67008918,133.78,133.73,5.28721534]
[1750674421778,50.95730452,133.78,133.7,7.58941534]
[1750674421976,8.69313153,133.77,133.7,7.58941534]
[1750674422172,7.4767,133.72,133.7,7.58941534]
[1750674422673,37.1,133.75,133.69,5.28721534]
[1750674422674,7.4774,133.71,133.69,5.28721534]
[1750674422879,5.28721534,133.74,133.68,49.86551534]
[1750674423575,7.4772,133.71,133.68,49.86551534]
[1750674425477,7.4772,133.71,133.69,7.4779]
[1750674426882,37.1,133.75,133.7,12.76441534]
[1750674427687,45.64776255,133.75,133.7,12.76441534]
[1750674428781,40.07270427,133.75,133.7,12.76441534]
[1750674428980,37.1,133.75,133.7,12.76441534]
[1750674429385,45.64776255,133.75,133.7,12.76441534]
[1750674429684,45.64934962,133.75,133.7,12.76441534]
[1750674430193,7.4763,133.73,133.7,12.76441534]
[1750674430383,40.07426921,133.75,133.69,12.76471534]
[1750674430590,37.1,133.75,133.69,5.28721534]
[1750674431190,7.4766,133.72,133.7,7.4773]
[1750674432284,7.4766,133.72,133.69,12.76491534]
[1750674433193,8.26042761,133.74,133.68,49.86551534]
[1750674433491,13.83997486,133.74,133.67,5.28721534]
[1750674433693,16.26937486,133.74,133.67,5.28721534]
[1750674433892,7.4783,133.69,133.67,5.28721534]
[1750674434395,7.4788,133.68,133.66,2.3271]
[1750674434588,37.1,133.69,133.64,6.99075211]
[1750674434790,37.1,133.69,133.64,5.28721534]
[1750674434791,37.1,133.68,133.64,5.28721534]
[1750674434987,44.5789,133.68,133.65,7.4802]
[1750674435289,37.1,133.68,133.64,5.28721534]
[1750674435892,37.1,133.68,133.65,7.4799]
[1750674436289,37.1,133.68,133.65,12.76711534]
[1750674437295,37.1,133.68,133.63,9.49231597]
[1750674437494,37.1,133.68,133.65,5.28721534]
[1750674437895,7.4794,133.67,133.65,5.28721534]
[1750674439901,7.4799,133.66,133.63,9.9998]
[1750674440100,7.4799,133.66,133.63,15.28701534]
[1750674441300,7.4799,133.66,133.63,9.9998]
[1750674441501,7.4803,133.65,133.63,15.28701534]
[1750674444902,37.1,133.68,133.63,5.28721534]
[1750674445506,7.4805,133.65,133.63,5.28721534]
[1750674446506,7.4811,133.64,133.6,13.87281597]
[1750674446702,7.4811,133.64,133.61,5.28721534]
[1750674447206,7.4811,133.64,133.62,7.4819]
[1750674448203,5.28721534,133.68,133.6,12.18661534]
[1750674448402,37.14,133.65,133.6,12.18661534]
[1750674448608,37.14,133.65,133.62,7.4816]
[1750674449406,44.6207,133.65,133.62,7.4816]
[1750674450008,44.6207,133.65,133.63,7.4812]
[1750674450208,7.4807,133.65,133.63,7.4812]
[1750674450409,7.4799,133.66,133.63,7.4812]
[1750674450615,7.4799,133.66,133.64,7.4808]
[1750674452507,7.4794,133.67,133.64,7.4808]
[1750674452913,7.4794,133.67,133.64,12.76801534]
[1750674453708,7.4794,133.67,133.65,7.4802]
[1750674453905,44.6188,133.68,133.65,7.4802]
[1750674454612,44.6188,133.68,133.65,12.76741534]
[1750674455814,44.6188,133.68,133.66,7.4796]
[1750674456013,44.6188,133.68,133.65,5.28721534]
[1750674456510,44.6188,133.68,133.65,12.76701534]
[1750674456813,7.4791,133.67,133.65,5.28721534]
[1750674458015,7.4796,133.66,133.64,5.28721534]
[1750674459215,7.4796,133.66,133.64,12.76791534]
[1750674459516,7.4794,133.67,133.64,12.76791534]
[1750674460220,7.4797,133.66,133.64,7.4807]
[1750674460514,7.4797,133.66,133.64,12.76791534]
[1750674460709,37.14,133.68,133.64,5.28721534]
[1750674460917,7.4794,133.67,133.65,7.4801]
[1750674462617,7.4794,133.67,133.65,12.76731534]
[1750674463315,44.6188,133.68,133.65,12.76731534]
[1750674463515,44.6188,133.68,133.66,7.4795]
[1750674464814,7.4788,133.68,133.66,7.4795]
[1750674466027,7.4788,133.68,133.65,12.76711534]
[1750674467121,7.4788,133.68,133.65,7.4799]
[1750674467322,7.4788,133.68,133.65,12.76711534]
[1750674468723,7.4788,133.68,133.66,7.4796]
[1750674469519,8.52926871,133.69,133.65,12.76701534]
[1750674470016,8.52926871,133.7,133.65,12.76701534]
[1750674470217,7.4789,133.68,133.65,12.76701534]
[1750674470623,7.4789,133.68,133.66,7.4796]
[1750674471428,7.4789,133.68,133.65,12.76721534]
[1750674471728,7.4792,133.67,133.65,12.76721534]
[1750674472834,7.4788,133.68,133.65,12.76721534]
[1750674474135,8.54139617,133.69,133.65,12.76721534]
[1750674474332,5.72306571,133.7,133.65,12.76721534]
[1750674474535,8.54139618,133.69,133.65,12.76721534]
[1750674474744,7.4789,133.68,133.65,12.76721534]
[1750674475640,11.0135656,133.7,133.63,12.26063131]
[1750674475840,14.27213572,133.69,133.63,12.26063131]
[1750674476137,45.66578546,133.68,133.63,19.74173131]
[1750674476340,37.12,133.68,133.63,19.74173131]
[1750674476645,7.4808,133.64,133.63,6.97341597]
[1750674476941,7.4808,133.64,133.62,6.97341597]
[1750674477130,7.4808,133.64,133.63,6.97341597]
[1750674479046,7.4805,133.65,133.63,6.97341597]
[1750674480748,7.4808,133.64,133.63,6.97341597]
[1750674482352,7.4808,133.64,133.62,6.97341597]
[1750674483054,7.4808,133.64,133.62,6.99929573]
[1750674483649,7.4813,133.63,133.62,6.99929573]
[1750674483854,5.72827914,133.67,133.62,6.99929573]
[1750674484049,8.54369299,133.66,133.62,6.99929573]
[1750674484353,5.72804501,133.67,133.62,6.99929573]
[1750674484645,8.54392035,133.66,133.62,6.99929573]
[1750674484847,42.40721534,133.68,133.62,6.99929573]
[1750674484848,5.72819883,133.67,133.62,6.99929573]
[1750674485047,42.40721534,133.68,133.62,6.99929573]
[1750674485048,8.5449434,133.66,133.62,6.99929573]
[1750674485247,5.728665,133.67,133.62,6.99929573]
[1750674485551,8.54189833,133.66,133.62,6.99929573]
[1750674485743,5.72866092,133.67,133.62,6.99929573]
[1750674486039,8.54288805,133.66,133.62,6.99929573]
[1750674486245,7.4811,133.64,133.62,14.48109573]
[1750674487349,7.4813,133.63,133.62,6.99929573]
[1750674488048,7.4813,133.63,133.61,19.76861107]
[1750674488449,5.72915023,133.66,133.61,12.28651107]
[1750674488648,5.72915023,133.66,133.6,16.15684883]
[1750674488649,8.54067552,133.67,133.64,6.99929573]
[1750674488848,37.12,133.68,133.63,12.28651107]
[1750674489053,8.53940964,133.67,133.63,19.76761107]
[1750674489249,37.12,133.68,133.63,19.76761107]
[1750674489451,8.53952212,133.67,133.63,12.28651107]
[1750674489755,37.12,133.68,133.63,12.28651107]
[1750674489956,8.53954463,133.67,133.63,12.28651107]
[1750674490146,7.4799,133.66,133.63,12.28651107]
[1750674490562,37.12,133.68,133.63,12.28651107]
[1750674490747,7.48,133.66,133.63,19.76751107]
[1750674492254,7.48,133.66,133.64,7.4808]
[1750674493147,7.48,133.66,133.63,19.76751107]
[1750674495148,7.48,133.66,133.64,7.4807]
[1750674495349,7.48,133.66,133.63,6.99670757]
[1750674495651,7.48,133.66,133.63,12.28392291]
[1750674496159,37.12,133.68,133.63,19.76502291]
[1750674496354,8.54559266,133.67,133.63,19.76502291]
[1750674496557,37.12,133.68,133.63,19.76502291]
[1750674496753,7.4801,133.66,133.63,19.76502291]
[1750674499657,7.4801,133.66,133.64,6.99670757]
[1750674500462,7.4801,133.66,133.63,19.76502291]
[1750674502463,7.4801,133.66,133.64,7.4807]
[1750674502662,7.4801,133.66,133.64,14.47740757]
[1750674502965,7.4801,133.66,133.64,7.4807]
[1750674503162,7.4802,133.65,133.63,14.47780757]
[1750674503367,7.4802,133.65,133.64,5.28721534]
[1750674503858,7.4802,133.65,133.61,6.99670757]
[1750674503859,8.56360544,133.65,133.61,6.99670757]
[1750674504066,37.14,133.65,133.61,6.99670757]
[1750674504363,7.4797,133.66,133.64,3.38456742]
[1750674504668,8.56254511,133.67,133.64,3.38456742]
[1750674504965,42.87810281,133.68,133.64,3.38456742]
[1750674505152,8.5624472,133.67,133.64,3.38456742]
[1750674505357,42.87810281,133.68,133.64,3.38456742]
[1750674505557,7.4797,133.66,133.64,10.38127499]
[1750674506358,7.4802,133.65,133.64,10.38127499]
[1750674507457,7.48,133.66,133.64,10.38127499]
[1750674508158,7.4802,133.65,133.64,10.38127499]
[1750674508762,7.4802,133.65,133.64,3.38456742]
[1750674508963,7.48,133.66,133.64,3.38456742]
[1750674509151,7.48,133.66,133.65,3.38456742]
[1750674509358,8.5589509,133.67,133.65,10.86476742]
[1750674509564,5.73763615,133.69,133.66,3.38456742]
[1750674509757,8.55891169,133.68,133.66,3.38456742]
[1750674509958,5.7365794,133.69,133.66,3.38456742]
[1750674510153,8.5588615,133.68,133.66,3.38456742]
[1750674510359,5.73657383,133.69,133.66,3.38456742]
[1750674510554,16.03778047,133.68,133.66,3.38456742]
[1750674510858,5.73663113,133.69,133.66,3.38326524]
[1750674511058,7.4792,133.67,133.66,3.38326524]
[1750674513462,7.4788,133.68,133.66,10.86286524]
[1750674513669,7.4788,133.68,133.67,3.38326524]
[1750674513864,37.14,133.7,133.67,3.38326524]
[1750674514059,37.14,133.7,133.69,3.38326524]
[1750674514265,45.70023734,133.7,133.69,3.38326524]
[1750674514462,37.14,133.7,133.69,3.38326524]
[1750674515670,44.6174,133.7,133.69,3.38326524]
[1750674515872,7.4774,133.7,133.69,3.38326524]
[1750674517171,7.4774,133.7,133.67,14.47550757]
[1750674517372,7.4774,133.7,133.69,3.38326524]
[1750674519677,11.94431831,133.71,133.67,3.38326524]
[1750674519881,8.56105307,133.7,133.67,3.38326524]
[1750674520378,3.38326524,133.71,133.68,3.38326524]
[1750674520879,7.4784,133.69,133.68,3.38326524]
[1750674532976,5.0,133.7,133.68,3.38326524]
[1750674533182,5.0,133.7,133.69,3.38326524]
[1750674533382,12.4774,133.7,133.69,3.38326524]
[1750674535078,12.4774,133.7,133.68,7.4782]
[1750674535383,12.4774,133.7,133.67,7.4788]
[1750674535683,12.4774,133.7,133.69,3.38326524]
[1750674538186,12.4774,133.7,133.68,3.38326524]
[1750674538878,12.4774,133.7,133.68,10.86176524]
[1750674539080,12.4774,133.7,133.69,3.38326524]
[1750674541685,12.4774,133.7,133.68,7.4784]
[1750674541886,12.4774,133.7,133.69,3.38326524]
[1750674545590,40.49975419,133.77,133.69,10.37646176]
[1750674545784,5.56621277,133.76,133.73,3.37975419]
[1750674545979,5.56621277,133.75,133.73,3.37975419]
[1750674546286,7.4749,133.75,133.73,3.37975419]
[1750674546587,13.04111277,133.75,133.73,3.38005881]
[1750674546788,7.4749,133.75,133.73,3.38005881]
[1750674547090,13.04111277,133.75,133.73,3.38005881]
[1750674547382,7.4749,133.75,133.73,3.38005881]
[1750674547587,13.04111277,133.75,133.73,3.38005881]
[1750674547787,13.04051277,133.76,133.74,3.38005881]
[1750674547979,5.56621277,133.75,133.74,3.38005881]
[1750674548179,5.56621277,133.76,133.74,3.38005881]
[1750674548378,7.4746,133.75,133.74,3.38005881]
[1750674548679,8.94627158,133.76,133.72,3.38005881]
[1750674548883,5.56621277,133.75,133.72,3.38005881]
[1750674549179,7.4755,133.74,133.72,3.38005881]
[1750674550591,13.04591741,133.75,133.73,3.38005881]
[1750674550890,13.04591741,133.75,133.74,3.38005881]
[1750674551091,7.4749,133.75,133.74,3.38005881]
[1750674551283,13.04591741,133.75,133.74,3.38005881]
[1750674551591,7.4749,133.75,133.74,3.38005881]
[1750674552282,13.04496246,133.76,133.74,3.38005881]
[1750674552690,5.57066246,133.76,133.75,3.38005881]
[1750674552886,42.69066246,133.77,133.75,3.38005881]
[1750674553293,7.4744,133.76,133.75,3.38005881]
[1750674553693,42.69066246,133.77,133.75,3.38005881]
[1750674553889,5.57066246,133.76,133.75,3.38005881]
[1750674554390,5.57066246,133.76,133.75,10.85465881]
[1750674554689,7.4732,133.78,133.75,10.85465881]
[1750674554998,7.4729,133.78,133.77,3.38005881]
[1750674555191,5.57195671,133.78,133.72,6.98354678]
[1750674555392,46.18231346,133.8,133.76,3.38005881]
[1750674555594,5.57177124,133.79,133.76,3.38005881]
[1750674555795,5.57177124,133.78,133.76,3.38005881]
[1750674555992,46.18231346,133.8,133.76,3.38005881]
[1750674556291,5.57173254,133.79,133.76,3.38005881]
[1750674556486,5.57173254,133.78,133.76,3.38005881]
[1750674556793,46.07179135,133.77,133.73,3.38005881]
[1750674556989,8.95179135,133.76,133.72,3.38005881]
[1750674557189,7.4756,133.74,133.72,3.38005881]
[1750674557393,7.4756,133.74,133.73,3.38005881]
[1750674557693,7.4749,133.75,133.73,3.38005881]
[1750674557887,7.4749,133.75,133.74,3.38005881]
[1750674563406,7.4752,133.74,133.73,3.38005881]
[1750674568208,7.4752,133.74,133.71,7.4764]
[1750674568404,7.4752,133.74,133.73,3.38005881]
[1750674573113,7.4751,133.75,133.73,10.85575881]
[1750674573304,7.4751,133.75,133.74,3.38005881]
[1750674574216,7.4751,133.75,133.72,7.4761]
[1750674574410,7.4751,133.75,133.74,3.38005881]
[1750674576705,13.05366721,133.76,133.74,3.38005881]
[1750674576907,13.05366721,133.76,133.75,3.38005881]
[1750674577114,7.4744,133.76,133.75,3.38005881]
[1750674579216,7.4748,133.75,133.74,3.38005881]
[1750674580318,7.4748,133.75,133.73,3.38005881]
[1750674581513,7.4752,133.74,133.73,3.38005881]
[1750674582422,7.4757,133.73,133.7,19.37884678]
[1750674582615,7.4757,133.73,133.7,4.9182]
[1750674582819,7.4757,133.73,133.72,3.38005881]
[1750674584518,7.4766,133.72,133.7,11.90174678]
[1750674584724,7.4766,133.72,133.71,3.38005881]
[1750674585021,7.4769,133.71,133.7,11.90174678]
[1750674585221,7.4769,133.71,133.7,3.38005881]
[1750674585520,7.4774,133.7,133.69,3.38005881]
[1750674586222,7.4783,133.69,133.66,14.46294678]
[1750674586416,7.4783,133.69,133.68,3.38005881]
[1750674587717,7.4777,133.7,133.68,3.38005881]
[1750674588017,7.4777,133.7,133.69,3.38005881]
[1750674588323,44.577,133.71,133.69,3.38005881]
[1750674588622,44.577,133.71,133.7,3.38005881]
[1750674590218,44.577,133.71,133.69,5.28373541]
[1750674592025,37.1,133.71,133.67,19.74608219]
[1750674592227,37.1,133.71,133.67,5.28373541]
[1750674592423,42.67211992,133.71,133.67,5.28373541]
[1750674592625,37.1,133.71,133.67,5.28373541]
[1750674592927,7.4782,133.69,133.67,5.28373541]
[1750674593422,7.4785,133.68,133.67,5.28373541]
[1750674593623,7.4785,133.68,133.66,6.98354678]
[1750674593820,5.28373541,133.71,133.66,6.98354678]
[1750674594019,7.4796,133.66,133.64,6.98354678]
[1750674594225,37.1,133.68,133.64,6.98354678]
[1750674594622,37.1,133.68,133.63,12.26728219]
[1750674595025,7.4803,133.65,133.63,12.26728219]
[1750674595628,7.4799,133.66,133.63,12.26728219]
[1750674596232,7.4799,133.66,133.63,19.74838219]
[1750674596531,7.4799,133.66,133.63,12.76483541]
[1750674598634,37.1,133.68,133.63,12.76483541]
[1750674599333,7.4802,133.65,133.63,12.76483541]
[1750674599630,7.48,133.66,133.63,12.76483541]
[1750674600134,37.1,133.68,133.63,12.76483541]
[1750674600334,37.1,133.68,133.63,5.28373541]
[1750674600938,37.1,133.68,133.63,12.76493541]
[1750674601238,7.4808,133.64,133.63,5.28373541]
[1750674601537,37.1,133.65,133.6,5.28373541]
[1750674602135,42.38373541,133.65,133.57,2.3076]
[1750674602333,42.38373541,133.65,133.58,5.28373541]
[1750674602535,7.4831,133.6,133.58,5.28373541]
[1750674602936,7.483,133.6,133.58,5.28373541]
[1750674603534,7.4827,133.61,133.58,12.76783541]
[1750674603732,37.1,133.65,133.6,5.28373541]
[1750674603938,37.1,133.65,133.6,12.76643541]
[1750674604134,37.1,133.65,133.6,5.28373541]
[1750674604839,7.4816,133.63,133.6,12.76673541]
[1750674608238,37.1,133.65,133.61,7.4824]
[1750674608439,37.1,133.65,133.6,5.28373541]
[1750674610446,7.4813,133.64,133.61,7.4823]
[1750674610744,7.4813,133.64,133.6,5.28373541]
[1750674610745,37.1,133.65,133.6,5.28373541]
[1750674611141,37.1,133.68,133.62,5.28373541]
[1750674611746,7.4805,133.65,133.62,12.76533541]
[1750674612141,7.4808,133.64,133.62,12.76533541]
[1750674613442,7.4804,133.65,133.63,7.4812]
[1750674613645,7.4804,133.65,133.62,5.28373541]
[1750674614346,7.4804,133.65,133.62,12.76523541]
[1750674614548,7.4808,133.64,133.62,12.76523541]
[1750674617947,7.4808,133.64,133.63,5.28373541]
[1750674618146,7.4808,133.64,133.62,7.4815]
[1750674618341,7.4805,133.65,133.63,5.28373541]
[1750674619450,7.4805,133.65,133.63,12.76503541]
[1750674619652,37.1,133.68,133.63,5.28373541]
[1750674620045,7.4794,133.67,133.64,7.4805]
[1750674620244,7.4794,133.67,133.64,12.76423541]
[1750674620646,7.4797,133.66,133.64,12.76423541]
[1750674620846,7.4797,133.66,133.64,5.28373541]
[1750674621651,7.4794,133.67,133.64,12.76443541]
[1750674623256,37.1,133.68,133.65,7.48]
[1750674623956,37.1,133.68,133.64,12.76413541]
[1750674624160,37.1,133.68,133.64,5.28373541]
[1750674624760,7.4791,133.67,133.64,12.76423541]
[1750674625359,37.1,133.68,133.63,12.76473541]
[1750674625859,7.4799,133.66,133.63,12.76473541]
[1750674627661,7.4794,133.67,133.64,7.4807]
[1750674628362,7.4797,133.66,133.64,7.4807]
[1750674633471,7.4802,133.65,133.64,7.4807]
[1750674633876,7.4802,133.65,133.63,12.76473541]
[1750674636274,8.45562008,133.67,133.64,7.4807]
[1750674636475,5.57320779,133.67,133.64,7.4807]
[1750674636871,2.88257578,133.67,133.64,7.4807]
[1750674637772,7.4798,133.66,133.64,7.4807]
[1750674638377,7.4798,133.66,133.63,12.76473541]
[1750674641685,7.4802,133.65,133.63,12.76473541]
[1750674643185,7.4808,133.64,133.62,16.88508618]
[1750674643378,7.4808,133.64,133.63,5.28373541]
[1750674644286,7.4808,133.64,133.63,3.38511765]
[1750674645079,7.4808,133.64,133.62,9.40348618]
[1750674645279,7.4808,133.64,133.63,3.38511765]
[1750674646285,7.4808,133.64,133.62,22.17418351]
[1750674646586,7.4805,133.65,133.62,22.17418351]
[1750674647477,7.4805,133.65,133.63,7.4812]
[1750674647682,7.4799,133.66,133.64,5.28889733]
[1750674648783,10.36598196,133.66,133.64,5.28889733]
[1750674649776,5.69115998,133.67,133.64,12.24818351]
[1750674649777,7.4794,133.67,133.64,12.24818351]
[1750674650585,7.4794,133.67,133.65,7.4802]
[1750674652583,44.5787,133.68,133.65,7.4802]
[1750674652784,5.58022661,133.67,133.65,7.4802]
[1750674652988,37.1,133.68,133.65,7.4802]
[1750674653285,7.4792,133.67,133.65,7.4802]
[1750674654686,44.5788,133.68,133.66,7.4796]
[1750674654888,37.1,133.68,133.66,5.28889733]
[1750674655587,37.1,133.68,133.67,7.4791]
[1750674655786,42.6861209,133.68,133.67,7.4791]
[1750674656091,7.4782,133.69,133.67,7.4791]
[1750674656289,13.17729897,133.7,133.68,12.76739733]
[1750674656487,5.58872185,133.69,133.68,12.76739733]
[1750674656678,646.26,133.73,133.68,5.28889733]
[1750674656988,37.1,133.74,133.68,5.28889733]
[1750674656989,21.64778081,133.72,133.7,12.76599733]
[1750674657193,5.58548857,133.71,133.7,12.76599733]
[1750674657392,7.4766,133.72,133.7,12.76599733]
[1750674658186,7.4766,133.72,133.7,7.4771]
[1750674658487,7.4766,133.72,133.7,5.28889733]
[1750674658885,10.36210398,133.73,133.7,12.76589733]
[1750674659084,37.1,133.74,133.7,12.76589733]
[1750674659486,7.4763,133.73,133.7,12.76589733]
[1750674659686,37.1,133.74,133.7,12.76589733]
[1750674659886,7.4762,133.73,133.7,12.76589733]
[1750674660488,37.1,133.74,133.7,12.76589733]
[1750674662188,7.4762,133.73,133.7,12.76589733]
[1750674663092,7.4764,133.72,133.7,12.76589733]
[1750674663291,7.4764,133.72,133.7,5.28889733]
[1750674664294,37.1,133.74,133.7,5.28889733]
[1750674664496,37.1,133.74,133.72,5.28889733]
[1750674665794,7.4758,133.73,133.72,5.28889733]
[1750674666193,7.4766,133.72,133.7,5.28889733]
[1750674669693,7.4766,133.72,133.69,7.4778]
[1750674669893,7.4759,133.73,133.7,5.28889733]
[1750674670294,7.4759,133.73,133.7,12.76589733]
[1750674670799,7.4759,133.73,133.7,5.28889733]
[1750674671098,7.4759,133.73,133.71,7.4767]
[1750674671997,7.4759,133.73,133.72,5.28889733]
[1750674672889,37.1,133.74,133.72,5.28889733]
[1750674673595,44.5752,133.74,133.72,12.76489733]
[1750674674407,7.4752,133.74,133.72,12.76489733]
[1750674674792,37.08,133.77,133.72,5.28889733]
[1750674675097,37.08,133.77,133.74,5.28889733]
[1750674675400,7.4743,133.76,133.74,12.76369733]
[1750674676490,44.5538,133.77,133.75,7.4743]
[1750674676695,683.3,133.8,133.76,5.28889733]
[1750674677098,7.4727,133.79,133.77,7.4734]
[1750674677394,37.06,133.8,133.78,5.28889733]
[1750674677988,44.5321,133.8,133.78,12.76149733]
[1750674678299,44.5321,133.8,133.78,5.28889733]
[1750674679288,37.06,133.8,133.78,5.28889733]
[1750674679588,134.50494316,133.82,133.78,5.28889733]
[1750674679900,7.4717,133.81,133.78,12.76159733]
[1750674680100,134.50494316,133.82,133.78,12.76159733]
[1750674680301,7.4715,133.81,133.79,7.4722]
[1750674680701,134.50494316,133.82,133.79,5.28889733]
[1750674681792,7.4715,133.81,133.79,12.76129733]
[1750674681996,37.06,133.83,133.79,5.28889733]
[1750674682199,37.06,133.83,133.81,5.28889733]
[1750674683704,7.471,133.82,133.81,5.28889733]
[1750674684001,37.06,133.83,133.81,5.28889733]
[1750674685400,37.06,133.83,133.79,5.28889733]
[1750674685605,42.34889733,133.83,133.78,5.28889733]
[1750674686006,5.28889733,133.81,133.75,5.28889733]
[1750674686203,37.06,133.8,133.75,5.28889733]
[1750674687002,7.4732,133.78,133.75,12.76349733]
[1750674687902,7.4732,133.78,133.76,7.4739]
[1750674688104,7.4727,133.79,133.77,5.28889733]
[1750674694699,37.06,133.8,133.77,12.76229733]
[1750674695405,37.06,133.8,133.77,5.28889733]
[1750674695908,7.4727,133.79,133.77,5.28889733]
[1750674696708,7.4727,133.79,133.77,12.76229733]
[1750674700616,44.5321,133.8,133.78,7.4729]
[1750674701115,37.06,133.8,133.77,5.28889733]
[1750674702013,7.4727,133.79,133.74,37.06]
[1750674702213,7.4727,133.79,133.78,5.28889733]
[1750674702815,44.532,133.8,133.78,5.28889733]
[1750674703412,7.472,133.8,133.78,5.28889733]
[1750674703715,7.472,133.8,133.78,12.76179733]
[1750674704111,7.4724,133.79,133.78,5.28889733]
[1750674706918,7.4729,133.78,133.74,37.06]
[1750674707220,37.04,133.8,133.74,5.28889733]
[1750674707415,37.04,133.79,133.74,5.28889733]
[1750674707617,37.04,133.79,133.74,12.76379733]
[1750674707618,7.4738,133.77,133.74,12.76379733]
[1750674707822,7.4738,133.77,133.74,5.28889733]
[1750674708023,37.04,133.79,133.76,5.28889733]
[1750674709420,5.3497626,133.83,133.78,5.28889733]
[1750674709724,37.04,133.82,133.78,5.28889733]
[1750674711516,7.4724,133.79,133.78,5.28889733]
[1750674713523,37.04,133.82,133.78,5.28889733]
[1750674714031,7.4716,133.81,133.78,12.76169733]
[1750674714619,37.04,133.82,133.78,12.76169733]
[1750674715233,7.4719,133.8,133.78,12.76169733]
[1750674715927,7.4719,133.8,133.78,5.28889733]
[1750674716529,7.4725,133.79,133.78,5.28889733]
[1750674716834,37.04,133.82,133.76,5.28889733]
[1750674717022,42.40100888,133.82,133.76,5.28889733]
[1750674717228,7.4732,133.78,133.76,5.28889733]
[1750674720330,7.4732,133.78,133.76,12.76289733]
[1750674721241,7.4726,133.79,133.76,12.76289733]
[1750674721541,7.4726,133.79,133.77,7.4734]
[1750674721837,7.4726,133.79,133.76,12.24818351]
[1750674722228,42.35077331,133.82,133.76,12.24818351]
[1750674722229,7.4721,133.8,133.78,5.28889733]
[1750674722427,7.4721,133.8,133.76,6.95928618]
[1750674722428,37.04,133.82,133.76,12.24818351]
[1750674722627,49.25424992,133.82,133.76,5.28889733]
[1750674723038,5.31069453,133.81,133.76,5.28889733]
[1750674723234,7.4735,133.77,133.76,5.28889733]
[1750674723642,37.02,133.79,133.76,5.28889733]
[1750674724038,7.4734,133.78,133.76,5.28889733]
[1750674725342,37.02,133.79,133.76,7.474]